[Event "Titled Tuesday Blitz May 30 Early 2023"]
[White "Koutlas, Nikolaos"]
[Black "Vlassov, Nikolai"]
[WhiteFideId "25827138"]
[BlackFideId "4103360"]
[WhiteElo "2215"]
[BlackElo "2324"]
[Result "1-0"]
[Round "03"]
[TimeControl "180+2"]
[Date "2023.05.30"]
[WhiteClock "0:01:45"]
[BlackClock "0:00:49"]

1. c4 {[%clk 0:02:45]}  e5 {[%clk 0:02:59]} 2. Nc3 {[%clk 0:02:44]}  Nf6 {[%clk 0:02:59]} 3. g3 {[%clk 0:02:45]}  h5 {[%clk 0:02:53]} 4. Nf3 {[%clk 0:02:39]}  e4 {[%clk 0:02:51]} 5. Nh4 {[%clk 0:02:36]}  c6 {[%clk 0:02:49]} 6. d3 {[%clk 0:02:30]}  d5 {[%clk 0:02:45]} 7. Bg2 {[%clk 0:02:28]}  Bb4 {[%clk 0:02:35]} 8. O-O {[%clk 0:02:20]}  Bxc3 {[%clk 0:02:30]} 9. bxc3 {[%clk 0:02:19]}  Be6 {[%clk 0:02:25]} 10. Rb1 {[%clk 0:02:11]}  Qc8 {[%clk 0:01:58]} 11. cxd5 {[%clk 0:02:08]}  cxd5 {[%clk 0:01:58]} 12. Ba3 {[%clk 0:02:03]}  g5 {[%clk 0:01:50]} 13. dxe4 {[%clk 0:02:00]}  gxh4 {[%clk 0:01:47]} 14. exd5 {[%clk 0:01:47]}  Bh3 {[%clk 0:01:47]} 15. Qd4 {[%clk 0:01:46]}  Rh6 {[%clk 0:00:49]} 16. Qe3+ {[%clk 0:01:45]} 1-0


[Site "https://www.chess.com"]

[Event "Titled Tuesday Blitz May 30 Early 2023"]
[White "Nasir, Zehn"]
[Black "Sanhueza, Cristian"]
[WhiteFideId "2613239"]
[BlackFideId "116815"]
[WhiteElo "1993"]
[BlackElo "2174"]
[Result "1-0"]
[Round "03"]
[TimeControl "180+2"]
[Date "2023.05.30"]
[WhiteClock "0:00:21"]
[BlackClock "0:00:00"]

1. d4 {[%clk 0:03:00]}  Nf6 {[%clk 0:02:54]} 2. Bf4 {[%clk 0:03:00]}  g6 {[%clk 0:02:54]} 3. Nc3 {[%clk 0:03:00]}  Bg7 {[%clk 0:02:54]} 4. e4 {[%clk 0:03:00]}  d6 {[%clk 0:02:54]} 5. Nf3 {[%clk 0:03:00]}  O-O {[%clk 0:02:54]} 6. Qd2 {[%clk 0:02:59]}  c5 {[%clk 0:02:54]} 7. dxc5 {[%clk 0:02:56]}  dxc5 {[%clk 0:02:55]} 8. Qxd8 {[%clk 0:02:56]}  Rxd8 {[%clk 0:02:55]} 9. Bc4 {[%clk 0:02:56]}  Nc6 {[%clk 0:02:54]} 10. O-O {[%clk 0:02:43]}  Bg4 {[%clk 0:02:53]} 11. Ng5 {[%clk 0:02:37]}  Rf8 {[%clk 0:02:47]} 12. h3 {[%clk 0:02:34]}  Bd7 {[%clk 0:02:39]} 13. Rad1 {[%clk 0:02:27]}  h6 {[%clk 0:02:35]} 14. Nf3 {[%clk 0:02:08]}  Rad8 {[%clk 0:02:12]} 15. Rfe1 {[%clk 0:02:04]}  Bc8 {[%clk 0:02:05]} 16. Nd5 {[%clk 0:01:53]}  g5 {[%clk 0:01:45]} 17. Bc7 {[%clk 0:01:45]}  Rde8 {[%clk 0:01:43]} 18. c3 {[%clk 0:01:40]}  e6 {[%clk 0:01:36]} 19. Nxf6+ {[%clk 0:01:34]}  Bxf6 {[%clk 0:01:37]} 20. Bb5 {[%clk 0:01:30]}  Bd8 {[%clk 0:01:02]} 21. Bd6 {[%clk 0:01:25]}  Be7 {[%clk 0:01:01]} 22. Bxc6 {[%clk 0:01:04]}  bxc6 {[%clk 0:00:58]} 23. Bxe7 {[%clk 0:00:55]}  Rxe7 {[%clk 0:00:59]} 24. Rd6 {[%clk 0:00:54]}  Rb7 {[%clk 0:00:40]} 25. b3 {[%clk 0:00:51]}  c4 {[%clk 0:00:40]} 26. b4 {[%clk 0:00:46]}  a5 {[%clk 0:00:37]} 27. a3 {[%clk 0:00:42]}  axb4 {[%clk 0:00:37]} 28. axb4 {[%clk 0:00:43]}  Rb6 {[%clk 0:00:16]} 29. Ne5 {[%clk 0:00:40]}  Ba6 {[%clk 0:00:15]} 30. Nd7 {[%clk 0:00:35]}  Rd8 {[%clk 0:00:12]} 31. Nf6+ {[%clk 0:00:36]}  Kg7 {[%clk 0:00:13]} 32. Nh5+ {[%clk 0:00:34]}  Kg6 {[%clk 0:00:14]} 33. Rxd8 {[%clk 0:00:33]}  Kxh5 {[%clk 0:00:14]} 34. Rd7 {[%clk 0:00:30]}  Kg6 {[%clk 0:00:14]} 35. Ra1 {[%clk 0:00:28]}  e5 {[%clk 0:00:12]} 36. Rad1 {[%clk 0:00:26]}  Bc8 {[%clk 0:00:11]} 37. R1d6+ {[%clk 0:00:25]}  Kg7 {[%clk 0:00:04]} 38. Rc7 {[%clk 0:00:24]}  Ba6 {[%clk 0:00:00]} 39. Rdxc6 {[%clk 0:00:21]} 1-0


[Site "https://www.chess.com"]

[Event "Titled Tuesday Blitz May 30 Early 2023"]
[White "Szyszylo, Rafal"]
[Black "Colas, Joshua"]
[WhiteFideId "1109626"]
[BlackFideId "2044447"]
[WhiteElo "1951"]
[BlackElo "2347"]
[Result "0-1"]
[Round "03"]
[TimeControl "180+2"]
[Date "2023.05.30"]
[WhiteClock "0:00:18"]
[BlackClock "0:00:47"]

1. e4 {[%clk 0:03:00]}  e5 {[%clk 0:02:58]} 2. Bc4 {[%clk 0:03:00]}  Nf6 {[%clk 0:02:54]} 3. Nc3 {[%clk 0:03:00]}  Bc5 {[%clk 0:02:53]} 4. d3 {[%clk 0:02:44]}  O-O {[%clk 0:02:52]} 5. f4 {[%clk 0:02:44]}  d6 {[%clk 0:02:48]} 6. f5 {[%clk 0:02:23]}  c6 {[%clk 0:02:44]} 7. Nf3 {[%clk 0:02:20]}  d5 {[%clk 0:02:43]} 8. Bb3 {[%clk 0:02:15]}  Ng4 {[%clk 0:02:32]} 9. Bg5 {[%clk 0:01:55]}  Qa5 {[%clk 0:02:29]} 10. Rf1 {[%clk 0:01:38]}  d4 {[%clk 0:02:19]} 11. h3 {[%clk 0:01:34]}  dxc3 {[%clk 0:02:16]} 12. bxc3 {[%clk 0:01:33]}  Ne3 {[%clk 0:01:55]} 13. Nd2 {[%clk 0:01:12]}  Nxd1 {[%clk 0:01:53]} 14. Rxd1 {[%clk 0:01:08]}  h6 {[%clk 0:01:40]} 15. Bh4 {[%clk 0:01:05]}  Qxc3 {[%clk 0:01:40]} 16. Rf3 {[%clk 0:00:59]}  Kh7 {[%clk 0:01:35]} 17. Ke2 {[%clk 0:00:58]}  a5 {[%clk 0:01:29]} 18. a4 {[%clk 0:00:56]}  b5 {[%clk 0:01:29]} 19. g4 {[%clk 0:00:49]}  bxa4 {[%clk 0:01:05]} 20. Bxa4 {[%clk 0:00:48]}  Qb4 {[%clk 0:01:04]} 21. Bb3 {[%clk 0:00:46]}  a4 {[%clk 0:01:04]} 22. Bc4 {[%clk 0:00:46]}  Ba6 {[%clk 0:01:05]} 23. Be1 {[%clk 0:00:45]}  Qb2 {[%clk 0:00:55]} 24. Rb1 {[%clk 0:00:45]}  Qxc2 {[%clk 0:00:54]} 25. Ra1 {[%clk 0:00:32]}  Bxc4 {[%clk 0:00:54]} 26. dxc4 {[%clk 0:00:32]}  Nd7 {[%clk 0:00:47]} 27. Rd3 {[%clk 0:00:18]}  Nf6 {[%clk 0:00:47]} 0-1


[Site "https://www.chess.com"]

[Event "Titled Tuesday Blitz May 30 Early 2023"]
[White "Srebrnic, Marko"]
[Black "Antal, Gergely"]
[WhiteFideId "14603616"]
[BlackFideId "717312"]
[WhiteElo "2341"]
[BlackElo "2471"]
[Result "0-1"]
[Round "03"]
[TimeControl "180+2"]
[Date "2023.05.30"]
[WhiteClock "0:00:15"]
[BlackClock "0:00:16"]

1. e4 {[%clk 0:02:59]}  d5 {[%clk 0:02:51]} 2. exd5 {[%clk 0:02:58]}  Nf6 {[%clk 0:02:51]} 3. g3 {[%clk 0:02:56]}  Qxd5 {[%clk 0:02:49]} 4. Qf3 {[%clk 0:02:52]}  Bf5 {[%clk 0:02:44]} 5. Qxd5 {[%clk 0:02:45]}  Nxd5 {[%clk 0:02:45]} 6. c3 {[%clk 0:02:32]}  Be4 {[%clk 0:02:34]} 7. f3 {[%clk 0:02:27]}  Bg6 {[%clk 0:02:35]} 8. d4 {[%clk 0:02:24]}  e6 {[%clk 0:02:35]} 9. Ne2 {[%clk 0:02:13]}  c5 {[%clk 0:02:35]} 10. h4 {[%clk 0:01:55]}  Nc6 {[%clk 0:02:31]} 11. h5 {[%clk 0:01:53]}  Bxb1 {[%clk 0:02:31]} 12. Rxb1 {[%clk 0:01:52]}  cxd4 {[%clk 0:02:32]} 13. Nxd4 {[%clk 0:01:49]}  Nxd4 {[%clk 0:02:32]} 14. cxd4 {[%clk 0:01:50]}  Bd6 {[%clk 0:02:27]} 15. Kf2 {[%clk 0:01:42]}  Rc8 {[%clk 0:02:27]} 16. Bb5+ {[%clk 0:01:31]}  Ke7 {[%clk 0:02:27]} 17. Bd3 {[%clk 0:01:28]}  Nb4 {[%clk 0:02:25]} 18. Be4 {[%clk 0:01:27]}  f5 {[%clk 0:02:20]} 19. Bg5+ {[%clk 0:01:18]}  Kf7 {[%clk 0:02:20]} 20. Bxb7 {[%clk 0:01:17]}  Rc2+ {[%clk 0:02:02]} 21. Ke3 {[%clk 0:01:17]}  Bxg3 {[%clk 0:01:28]} 22. f4 {[%clk 0:01:02]}  Bf2+ {[%clk 0:01:13]} 23. Kf3 {[%clk 0:01:01]}  Rb8 {[%clk 0:01:07]} 24. a3 {[%clk 0:00:22]}  Rxb7 {[%clk 0:01:06]} 25. axb4 {[%clk 0:00:21]}  Rxb4 {[%clk 0:01:07]} 26. b3 {[%clk 0:00:21]}  Bxd4 {[%clk 0:01:05]} 27. Rhd1 {[%clk 0:00:19]}  Rc3+ {[%clk 0:00:42]} 28. Ke2 {[%clk 0:00:19]}  h6 {[%clk 0:00:28]} 29. Bh4 {[%clk 0:00:18]}  Bf6 {[%clk 0:00:28]} 30. Bxf6 {[%clk 0:00:16]}  Kxf6 {[%clk 0:00:28]} 31. Rd7 {[%clk 0:00:14]}  Rxf4 {[%clk 0:00:20]} 32. Rg1 {[%clk 0:00:12]}  Rg4 {[%clk 0:00:19]} 33. Ra1 {[%clk 0:00:11]}  Rxb3 {[%clk 0:00:14]} 34. Raxa7 {[%clk 0:00:11]}  Rbg3 {[%clk 0:00:13]} 35. Rf7+ {[%clk 0:00:10]}  Ke5 {[%clk 0:00:13]} 36. Ra5+ {[%clk 0:00:11]}  Kf4 {[%clk 0:00:12]} 37. Ra4+ {[%clk 0:00:10]}  Kg5 {[%clk 0:00:12]} 38. Rxg7+ {[%clk 0:00:10]}  Kxh5 {[%clk 0:00:13]} 39. Rgxg4 {[%clk 0:00:06]}  Rxg4 {[%clk 0:00:14]} 40. Ra6 {[%clk 0:00:07]}  Re4+ {[%clk 0:00:15]} 41. Kf3 {[%clk 0:00:08]}  Kg5 {[%clk 0:00:15]} 42. Ra8 {[%clk 0:00:08]}  Kf6 {[%clk 0:00:14]} 43. Rg8 {[%clk 0:00:09]}  Ra4 {[%clk 0:00:14]} 44. Rf8+ {[%clk 0:00:09]}  Ke5 {[%clk 0:00:14]} 45. Rh8 {[%clk 0:00:10]}  Ra3+ {[%clk 0:00:15]} 46. Ke2 {[%clk 0:00:10]}  f4 {[%clk 0:00:15]} 47. Rxh6 {[%clk 0:00:11]}  Kf5 {[%clk 0:00:16]} 48. Rh8 {[%clk 0:00:11]}  e5 {[%clk 0:00:16]} 49. Rf8+ {[%clk 0:00:12]}  Ke4 {[%clk 0:00:17]} 50. Kf1 {[%clk 0:00:13]}  Ra2 {[%clk 0:00:17]} 51. Rc8 {[%clk 0:00:13]}  Kf5 {[%clk 0:00:17]} 52. Rc3 {[%clk 0:00:14]}  e4 {[%clk 0:00:17]} 53. Rc8 {[%clk 0:00:14]}  Kg4 {[%clk 0:00:18]} 54. Rc3 {[%clk 0:00:15]}  e3 {[%clk 0:00:18]} 55. Ke1 {[%clk 0:00:15]}  Kf3 {[%clk 0:00:18]} 56. Kd1 {[%clk 0:00:16]}  Ra1+ {[%clk 0:00:17]} 57. Kc2 {[%clk 0:00:16]}  Rh1 {[%clk 0:00:17]} 58. Rc4 {[%clk 0:00:17]}  Kg3 {[%clk 0:00:17]} 59. Rc6 {[%clk 0:00:16]}  e2 {[%clk 0:00:17]} 60. Rg6+ {[%clk 0:00:15]}  Kf2 {[%clk 0:00:16]} 0-1


[Site "https://www.chess.com"]

[Event "Titled Tuesday Blitz May 30 Early 2023"]
[White "KorolDimitriy75"]
[Black "Streltsov, Alexey"]
[BlackFideId "24104434"]
[WhiteElo "2411"]
[BlackElo "2593"]
[Result "1-0"]
[Round "03"]
[TimeControl "180+2"]
[Date "2023.05.30"]
[WhiteClock "0:00:11"]
[BlackClock "0:00:25"]

1. d4 {[%clk 0:03:00]}  d5 {[%clk 0:03:00]} 2. c4 {[%clk 0:03:00]}  e6 {[%clk 0:03:00]} 3. Nc3 {[%clk 0:03:01]}  c6 {[%clk 0:03:01]} 4. e3 {[%clk 0:03:00]}  f5 {[%clk 0:03:01]} 5. f4 {[%clk 0:02:59]}  Nh6 {[%clk 0:03:00]} 6. Nf3 {[%clk 0:02:58]}  Nf7 {[%clk 0:03:00]} 7. Be2 {[%clk 0:02:56]}  Bd6 {[%clk 0:02:58]} 8. O-O {[%clk 0:02:55]}  O-O {[%clk 0:02:59]} 9. Ne5 {[%clk 0:02:53]}  b6 {[%clk 0:02:58]} 10. Qb3 {[%clk 0:02:52]}  Bb7 {[%clk 0:02:53]} 11. Bd2 {[%clk 0:02:51]}  Nd7 {[%clk 0:02:48]} 12. Rac1 {[%clk 0:02:38]}  Rc8 {[%clk 0:02:30]} 13. a3 {[%clk 0:02:28]}  Ba6 {[%clk 0:02:29]} 14. Qa4 {[%clk 0:02:21]}  Bxc4 {[%clk 0:02:01]} 15. Bxc4 {[%clk 0:01:46]}  Bxe5 {[%clk 0:02:01]} 16. fxe5 {[%clk 0:01:42]}  dxc4 {[%clk 0:01:59]} 17. Qxc4 {[%clk 0:01:39]}  Ndxe5 {[%clk 0:01:35]} 18. Qxe6 {[%clk 0:01:37]}  g6 {[%clk 0:01:35]} 19. Rcd1 {[%clk 0:01:34]}  Qd7 {[%clk 0:01:33]} 20. Qb3 {[%clk 0:01:13]}  Ng4 {[%clk 0:01:31]} 21. h3 {[%clk 0:01:12]}  Nf6 {[%clk 0:01:31]} 22. Bc1 {[%clk 0:00:52]}  Nd5 {[%clk 0:01:27]} 23. e4 {[%clk 0:00:30]}  fxe4 {[%clk 0:00:58]} 24. Nxe4 {[%clk 0:00:29]}  Kg7 {[%clk 0:00:59]} 25. Bg5 {[%clk 0:00:12]}  Nxg5 {[%clk 0:00:52]} 26. Nxg5 {[%clk 0:00:12]}  Rf5 {[%clk 0:00:45]} 27. Qg3 {[%clk 0:00:10]}  h6 {[%clk 0:00:26]} 28. Nf3 {[%clk 0:00:10]}  Ne3 {[%clk 0:00:20]} 29. Ne5 {[%clk 0:00:09]}  Rxf1+ {[%clk 0:00:01]} 30. Rxf1 {[%clk 0:00:09]}  Qe6 {[%clk 0:00:02]} 31. Qxe3 {[%clk 0:00:09]}  Rf8 {[%clk 0:00:03]} 32. Rxf8 {[%clk 0:00:08]}  Kxf8 {[%clk 0:00:04]} 33. Qe4 {[%clk 0:00:08]}  Kg7 {[%clk 0:00:04]} 34. Qxc6 {[%clk 0:00:08]}  Qf5 {[%clk 0:00:04]} 35. Qd7+ {[%clk 0:00:08]}  Kg8 {[%clk 0:00:04]} 36. Qxf5 {[%clk 0:00:07]}  gxf5 {[%clk 0:00:05]} 37. Kf2 {[%clk 0:00:07]}  Kg7 {[%clk 0:00:06]} 38. Kf3 {[%clk 0:00:08]}  Kf6 {[%clk 0:00:07]} 39. Kf4 {[%clk 0:00:09]}  Ke6 {[%clk 0:00:08]} 40. g3 {[%clk 0:00:08]}  Kd5 {[%clk 0:00:09]} 41. Ke3 {[%clk 0:00:08]}  h5 {[%clk 0:00:09]} 42. b3 {[%clk 0:00:07]}  b5 {[%clk 0:00:09]} 43. Kd3 {[%clk 0:00:07]}  a5 {[%clk 0:00:09]} 44. h4 {[%clk 0:00:07]}  a4 {[%clk 0:00:10]} 45. b4 {[%clk 0:00:07]}  Kd6 {[%clk 0:00:11]} 46. Ng6 {[%clk 0:00:06]}  Ke6 {[%clk 0:00:10]} 47. Nf4+ {[%clk 0:00:07]}  Kf6 {[%clk 0:00:11]} 48. Nxh5+ {[%clk 0:00:08]}  Kg6 {[%clk 0:00:12]} 49. Nf4+ {[%clk 0:00:08]}  Kf7 {[%clk 0:00:13]} 50. h5 {[%clk 0:00:09]}  Kf6 {[%clk 0:00:13]} 51. d5 {[%clk 0:00:09]}  Kg5 {[%clk 0:00:14]} 52. Kd4 {[%clk 0:00:09]}  Kg4 {[%clk 0:00:15]} 53. d6 {[%clk 0:00:09]}  Kxg3 {[%clk 0:00:16]} 54. d7 {[%clk 0:00:10]}  Kxf4 {[%clk 0:00:17]} 55. d8=Q {[%clk 0:00:11]}  Kg3 {[%clk 0:00:18]} 56. Qd6+ {[%clk 0:00:11]}  f4 {[%clk 0:00:19]} 57. Qe5 {[%clk 0:00:11]}  Kf3 {[%clk 0:00:18]} 58. h6 {[%clk 0:00:11]}  Kg4 {[%clk 0:00:19]} 59. h7 {[%clk 0:00:11]}  f3 {[%clk 0:00:20]} 60. h8=Q {[%clk 0:00:11]}  f2 {[%clk 0:00:21]} 61. Qhg7+ {[%clk 0:00:12]}  Kf3 {[%clk 0:00:22]} 62. Qgf6+ {[%clk 0:00:12]}  Kg2 {[%clk 0:00:23]} 63. Qef4 {[%clk 0:00:12]}  Kh1 {[%clk 0:00:24]} 64. Qf3+ {[%clk 0:00:11]}  Kg1 {[%clk 0:00:24]} 65. Qxf2+ {[%clk 0:00:12]}  Kh1 {[%clk 0:00:25]} 66. Qh6# {[%clk 0:00:11]} 1-0


[Site "https://www.chess.com"]

[Event "Titled Tuesday Blitz May 30 Early 2023"]
[White "Do Nascimento,Christian Almeida"]
[Black "Mazurkiewicz, Michal"]
[WhiteFideId "2143801"]
[BlackFideId "1124943"]
[WhiteElo "2118"]
[BlackElo "2054"]
[Result "0-1"]
[Round "03"]
[TimeControl "180+2"]
[Date "2023.05.30"]
[WhiteClock "0:00:00"]
[BlackClock "0:00:58"]

1. e4 {[%clk 0:02:59]}  d6 {[%clk 0:02:59]} 2. d4 {[%clk 0:02:59]}  Nf6 {[%clk 0:02:59]} 3. Nc3 {[%clk 0:02:59]}  c6 {[%clk 0:02:59]} 4. Nf3 {[%clk 0:02:53]}  Bg4 {[%clk 0:02:59]} 5. Be2 {[%clk 0:02:51]}  e6 {[%clk 0:02:59]} 6. O-O {[%clk 0:02:51]}  d5 {[%clk 0:02:59]} 7. e5 {[%clk 0:02:47]}  Nfd7 {[%clk 0:03:00]} 8. h3 {[%clk 0:02:40]}  Bh5 {[%clk 0:03:00]} 9. Be3 {[%clk 0:02:33]}  c5 {[%clk 0:03:00]} 10. dxc5 {[%clk 0:02:22]}  Bxc5 {[%clk 0:02:50]} 11. Bxc5 {[%clk 0:02:08]}  Nxc5 {[%clk 0:02:51]} 12. Qd4 {[%clk 0:02:04]}  Qb6 {[%clk 0:02:42]} 13. Nb5 {[%clk 0:01:45]}  O-O {[%clk 0:02:14]} 14. a4 {[%clk 0:01:21]}  Bxf3 {[%clk 0:01:56]} 15. Bxf3 {[%clk 0:01:21]}  Nc6 {[%clk 0:01:49]} 16. Qf4 {[%clk 0:01:16]}  Nd7 {[%clk 0:01:49]} 17. Rfe1 {[%clk 0:01:11]}  a6 {[%clk 0:01:48]} 18. Nd6 {[%clk 0:00:52]}  Ncxe5 {[%clk 0:01:48]} 19. Rxe5 {[%clk 0:00:23]}  Nxe5 {[%clk 0:01:48]} 20. Qxe5 {[%clk 0:00:22]}  Rad8 {[%clk 0:01:48]} 21. Nxf7 {[%clk 0:00:15]}  Rxf7 {[%clk 0:01:49]} 22. Re1 {[%clk 0:00:13]}  Rf6 {[%clk 0:01:46]} 23. Re2 {[%clk 0:00:12]}  Qd6 {[%clk 0:01:45]} 24. Qd4 {[%clk 0:00:09]}  Kh8 {[%clk 0:01:24]} 25. b3 {[%clk 0:00:09]}  b5 {[%clk 0:01:11]} 26. axb5 {[%clk 0:00:09]}  axb5 {[%clk 0:01:12]} 27. Qd3 {[%clk 0:00:10]}  b4 {[%clk 0:01:11]} 28. Qd4 {[%clk 0:00:10]}  Rc8 {[%clk 0:01:08]} 29. Re5 {[%clk 0:00:08]}  Qc5 {[%clk 0:01:06]} 30. Qh4 {[%clk 0:00:06]}  Qxc2 {[%clk 0:01:02]} 31. Qg4 {[%clk 0:00:03]}  Qc1+ {[%clk 0:00:57]} 32. Kh2 {[%clk 0:00:03]}  Qc7 {[%clk 0:00:57]} 33. Qg3 {[%clk 0:00:00]}  Rg6 {[%clk 0:00:58]} 0-1


[Site "https://www.chess.com"]

[Event "Titled Tuesday Blitz May 30 Early 2023"]
[White "Rangel, Daniel"]
[Black "Shuvalov, Evgenij"]
[WhiteFideId "2124475"]
[BlackFideId "4187237"]
[WhiteElo "2256"]
[BlackElo "2080"]
[Result "0-1"]
[Round "03"]
[TimeControl "180+2"]
[Date "2023.05.30"]
[WhiteClock "0:00:10"]
[BlackClock "0:00:19"]

1. c4 {[%clk 0:03:00]}  Nf6 {[%clk 0:02:55]} 2. d4 {[%clk 0:03:00]}  g6 {[%clk 0:02:55]} 3. Nc3 {[%clk 0:03:00]}  d5 {[%clk 0:02:56]} 4. cxd5 {[%clk 0:02:59]}  Nxd5 {[%clk 0:02:56]} 5. Nf3 {[%clk 0:02:59]}  Bg7 {[%clk 0:02:56]} 6. e3 {[%clk 0:02:59]}  c5 {[%clk 0:02:56]} 7. Bb5+ {[%clk 0:02:57]}  Nc6 {[%clk 0:02:55]} 8. O-O {[%clk 0:02:55]}  O-O {[%clk 0:02:54]} 9. h3 {[%clk 0:02:55]}  Nxc3 {[%clk 0:02:49]} 10. bxc3 {[%clk 0:02:55]}  Qa5 {[%clk 0:02:48]} 11. Bxc6 {[%clk 0:02:48]}  bxc6 {[%clk 0:02:49]} 12. a4 {[%clk 0:02:38]}  Qxc3 {[%clk 0:02:39]} 13. Bd2 {[%clk 0:02:38]}  Qd3 {[%clk 0:02:36]} 14. Rc1 {[%clk 0:02:32]}  cxd4 {[%clk 0:02:33]} 15. Nxd4 {[%clk 0:02:26]}  Bb7 {[%clk 0:01:55]} 16. Bb4 {[%clk 0:02:15]}  Qxd1 {[%clk 0:01:50]} 17. Rfxd1 {[%clk 0:02:16]}  Bf6 {[%clk 0:01:45]} 18. Nxc6 {[%clk 0:02:12]}  Bxc6 {[%clk 0:01:41]} 19. Rxc6 {[%clk 0:02:13]}  a5 {[%clk 0:01:41]} 20. Bc3 {[%clk 0:02:05]}  Bxc3 {[%clk 0:01:39]} 21. Rxc3 {[%clk 0:02:06]}  Rfc8 {[%clk 0:01:38]} 22. Rxc8+ {[%clk 0:02:01]}  Rxc8 {[%clk 0:01:39]} 23. Rd5 {[%clk 0:01:59]}  Ra8 {[%clk 0:01:39]} 24. Rb5 {[%clk 0:01:56]}  h5 {[%clk 0:01:38]} 25. g4 {[%clk 0:01:56]}  hxg4 {[%clk 0:01:38]} 26. hxg4 {[%clk 0:01:57]}  f6 {[%clk 0:01:37]} 27. Kg2 {[%clk 0:01:56]}  Kf7 {[%clk 0:01:37]} 28. f4 {[%clk 0:01:56]}  Ra7 {[%clk 0:01:36]} 29. Kf3 {[%clk 0:01:55]}  Ke6 {[%clk 0:01:36]} 30. Rb6+ {[%clk 0:01:55]}  Kf7 {[%clk 0:01:33]} 31. Ke4 {[%clk 0:01:52]}  Rc7 {[%clk 0:01:30]} 32. Kd3 {[%clk 0:01:49]}  Rd7+ {[%clk 0:01:29]} 33. Kc3 {[%clk 0:01:48]}  Rd1 {[%clk 0:01:23]} 34. Rb5 {[%clk 0:01:43]}  Rg1 {[%clk 0:01:23]} 35. g5 {[%clk 0:01:42]}  fxg5 {[%clk 0:01:21]} 36. fxg5 {[%clk 0:01:43]}  Rc1+ {[%clk 0:01:11]} 37. Kd3 {[%clk 0:01:37]}  Ra1 {[%clk 0:01:09]} 38. Rxa5 {[%clk 0:01:37]}  Ke6 {[%clk 0:01:09]} 39. Ke4 {[%clk 0:01:35]}  Ra3 {[%clk 0:01:08]} 40. Ra6+ {[%clk 0:01:35]}  Kf7 {[%clk 0:01:08]} 41. Kf4 {[%clk 0:01:34]}  Ra1 {[%clk 0:01:07]} 42. a5 {[%clk 0:01:25]}  Rf1+ {[%clk 0:01:05]} 43. Ke4 {[%clk 0:01:25]}  Rg1 {[%clk 0:01:04]} 44. Kf4 {[%clk 0:01:21]}  Rf1+ {[%clk 0:01:04]} 45. Ke4 {[%clk 0:01:20]}  Rg1 {[%clk 0:01:04]} 46. Ra8 {[%clk 0:00:50]}  Rxg5 {[%clk 0:01:03]} 47. a6 {[%clk 0:00:51]}  Ra5 {[%clk 0:01:03]} 48. a7 {[%clk 0:00:51]}  Ra4+ {[%clk 0:00:53]} 49. Kf3 {[%clk 0:00:50]}  Ra1 {[%clk 0:00:50]} 50. Kf4 {[%clk 0:00:49]}  Ra4+ {[%clk 0:00:48]} 51. e4 {[%clk 0:00:46]}  Ra5 {[%clk 0:00:48]} 52. Ke3 {[%clk 0:00:44]}  Ra3+ {[%clk 0:00:47]} 53. Kd4 {[%clk 0:00:45]}  g5 {[%clk 0:00:43]} 54. Ke5 {[%clk 0:00:23]}  g4 {[%clk 0:00:41]} 55. Kf4 {[%clk 0:00:24]}  g3 {[%clk 0:00:41]} 56. Rh8 {[%clk 0:00:19]}  g2 {[%clk 0:00:26]} 57. a8=Q {[%clk 0:00:17]}  Rxa8 {[%clk 0:00:25]} 58. Rxa8 {[%clk 0:00:18]}  g1=Q {[%clk 0:00:24]} 59. Ra5 {[%clk 0:00:16]}  Qf2+ {[%clk 0:00:22]} 60. Kg4 {[%clk 0:00:16]}  Qe2+ {[%clk 0:00:20]} 61. Kh3 {[%clk 0:00:14]}  Qe3+ {[%clk 0:00:19]} 62. Kg2 {[%clk 0:00:15]}  Qd2+ {[%clk 0:00:19]} 63. Kf3 {[%clk 0:00:10]}  Qxa5 {[%clk 0:00:19]} 0-1


[Site "https://www.chess.com"]

[Event "Titled Tuesday Blitz May 30 Early 2023"]
[White "Kiremitciyan, Ari"]
[Black "gao6969"]
[WhiteFideId "6373445"]
[WhiteElo "2181"]
[BlackElo "2365"]
[Result "1-0"]
[Round "03"]
[TimeControl "180+2"]
[Date "2023.05.30"]
[WhiteClock "0:01:39"]
[BlackClock "0:00:34"]

1. Nf3 {[%clk 0:03:00]}  Nf6 {[%clk 0:02:58]} 2. c4 {[%clk 0:02:59]}  e6 {[%clk 0:02:56]} 3. Nc3 {[%clk 0:02:56]}  d5 {[%clk 0:02:55]} 4. e3 {[%clk 0:02:56]}  Bb4 {[%clk 0:02:55]} 5. Qc2 {[%clk 0:02:54]}  O-O {[%clk 0:02:55]} 6. a3 {[%clk 0:02:52]}  Bxc3 {[%clk 0:02:52]} 7. Qxc3 {[%clk 0:02:53]}  c5 {[%clk 0:02:46]} 8. cxd5 {[%clk 0:02:50]}  Qxd5 {[%clk 0:02:43]} 9. Bc4 {[%clk 0:02:46]}  Qd6 {[%clk 0:02:33]} 10. O-O {[%clk 0:02:41]}  b6 {[%clk 0:02:29]} 11. b3 {[%clk 0:02:32]}  Bb7 {[%clk 0:02:27]} 12. Bb2 {[%clk 0:02:33]}  Nbd7 {[%clk 0:02:05]} 13. d4 {[%clk 0:02:29]}  Ne4 {[%clk 0:01:43]} 14. dxc5 {[%clk 0:02:25]}  Nxc3 {[%clk 0:01:41]} 15. cxd6 {[%clk 0:02:25]}  Ne4 {[%clk 0:01:37]} 16. Rfd1 {[%clk 0:02:21]}  Rfd8 {[%clk 0:01:33]} 17. Rac1 {[%clk 0:02:06]}  Nf8 {[%clk 0:01:22]} 18. Be5 {[%clk 0:01:57]}  a6 {[%clk 0:01:02]} 19. Bd3 {[%clk 0:01:44]}  Nxd6 {[%clk 0:00:47]} 20. Bxd6 {[%clk 0:01:41]}  Rxd6 {[%clk 0:00:39]} 21. Bxh7+ {[%clk 0:01:42]}  Kxh7 {[%clk 0:00:39]} 22. Rxd6 {[%clk 0:01:43]}  Bd5 {[%clk 0:00:39]} 23. Rxb6 {[%clk 0:01:40]}  a5 {[%clk 0:00:37]} 24. e4 {[%clk 0:01:39]}  Bxe4 {[%clk 0:00:34]} 25. Ng5+ {[%clk 0:01:39]} 1-0


[Site "https://www.chess.com"]